[Event "Titled Tuesday Blitz June 29 2021"]
[White "Shahaliyev"]
[Black "olksuna"]
[WhiteElo "2716"]
[BlackElo "2644"]
[Result "1-0"]
[Round "09"]
[TimeControl "180+1"]
[Date "2021.06.29"]
[WhiteClock "0:00:27"]
[BlackClock "0:00:19"]

1. d4 {[%clk 0:03:00]}  Nf6 {[%clk 0:02:59]} 2. Nc3 {[%clk 0:03:00]}  d6 {[%clk 0:02:56]} 3. Bg5 {[%clk 0:03:00]}  Nbd7 {[%clk 0:02:54]} 4. e4 {[%clk 0:02:57]}  e5 {[%clk 0:02:54]} 5. f4 {[%clk 0:02:54]}  Be7 {[%clk 0:02:52]} 6. Nf3 {[%clk 0:02:54]}  O-O {[%clk 0:02:44]} 7. Qd2 {[%clk 0:02:43]}  exd4 {[%clk 0:02:36]} 8. Nxd4 {[%clk 0:02:40]}  Nc5 {[%clk 0:02:36]} 9. Bd3 {[%clk 0:02:40]}  h6 {[%clk 0:02:29]} 10. h4 {[%clk 0:02:40]}  Bg4 {[%clk 0:02:25]} 11. Qe3 {[%clk 0:02:05]}  Nxd3+ {[%clk 0:02:03]} 12. cxd3 {[%clk 0:02:05]}  hxg5 {[%clk 0:02:03]} 13. hxg5 {[%clk 0:02:05]}  Nh5 {[%clk 0:02:04]} 14. Rh4 {[%clk 0:01:45]}  Nxf4 {[%clk 0:01:26]} 15. Rxg4 {[%clk 0:01:37]}  Bxg5 {[%clk 0:00:54]} 16. Rxf4 {[%clk 0:01:37]}  d5 {[%clk 0:00:32]} 17. O-O-O {[%clk 0:01:01]}  c5 {[%clk 0:00:32]} 18. Nf5 {[%clk 0:00:38]}  d4 {[%clk 0:00:28]} 19. Qg3 {[%clk 0:00:38]}  Bxf4+ {[%clk 0:00:25]} 20. Qxf4 {[%clk 0:00:38]}  dxc3 {[%clk 0:00:23]} 21. Rh1 {[%clk 0:00:33]}  cxb2+ {[%clk 0:00:21]} 22. Kxb2 {[%clk 0:00:28]}  Qxd3 {[%clk 0:00:19]} 23. Rh8+ {[%clk 0:00:27]} 1-0


[Site "https://www.chess.com"]

[Event "Titled Tuesday Blitz June 29 2021"]
[White "ShapkinAnatoliy"]
[Black "kingofthenil"]
[WhiteElo "2712"]
[BlackElo "2622"]
[Result "0-1"]
[Round "09"]
[TimeControl "180+1"]
[Date "2021.06.29"]
[WhiteClock "0:00:07"]
[BlackClock "0:00:13"]

1. d4 {[%clk 0:03:00]}  Nf6 {[%clk 0:03:00]} 2. c4 {[%clk 0:02:59]}  a6 {[%clk 0:03:00]} 3. Nc3 {[%clk 0:02:57]}  c5 {[%clk 0:03:00]} 4. d5 {[%clk 0:02:57]}  b5 {[%clk 0:02:58]} 5. e4 {[%clk 0:02:57]}  b4 {[%clk 0:02:41]} 6. Na4 {[%clk 0:02:57]}  Nxe4 {[%clk 0:02:35]} 7. Bd3 {[%clk 0:02:55]}  Nd6 {[%clk 0:02:30]} 8. Nxc5 {[%clk 0:02:53]}  g6 {[%clk 0:02:29]} 9. Nf3 {[%clk 0:02:49]}  Bg7 {[%clk 0:02:29]} 10. O-O {[%clk 0:02:47]}  O-O {[%clk 0:02:29]} 11. Re1 {[%clk 0:02:46]}  e6 {[%clk 0:01:53]} 12. Bf4 {[%clk 0:02:19]}  Nb7 {[%clk 0:01:53]} 13. Ne4 {[%clk 0:02:01]}  exd5 {[%clk 0:01:50]} 14. cxd5 {[%clk 0:02:01]}  d6 {[%clk 0:01:51]} 15. h3 {[%clk 0:01:56]}  Bf5 {[%clk 0:01:50]} 16. Qd2 {[%clk 0:01:51]}  Bxe4 {[%clk 0:01:48]} 17. Bxe4 {[%clk 0:01:46]}  a5 {[%clk 0:01:33]} 18. Nd4 {[%clk 0:01:46]}  Nc5 {[%clk 0:01:22]} 19. Bf3 {[%clk 0:01:44]}  Qf6 {[%clk 0:01:06]} 20. Rad1 {[%clk 0:01:42]}  Nbd7 {[%clk 0:01:03]} 21. Nc6 {[%clk 0:01:28]}  Rfe8 {[%clk 0:00:59]} 22. b3 {[%clk 0:01:27]}  h6 {[%clk 0:00:36]} 23. Bxh6 {[%clk 0:01:22]}  Bxh6 {[%clk 0:00:37]} 24. Qxh6 {[%clk 0:01:21]}  Ne5 {[%clk 0:00:38]} 25. Qe3 {[%clk 0:00:48]}  Ned3 {[%clk 0:00:23]} 26. Qxe8+ {[%clk 0:00:39]}  Rxe8 {[%clk 0:00:24]} 27. Rxe8+ {[%clk 0:00:38]}  Kg7 {[%clk 0:00:25]} 28. Re2 {[%clk 0:00:33]}  Nf4 {[%clk 0:00:24]} 29. Red2 {[%clk 0:00:25]}  Nxh3+ {[%clk 0:00:23]} 30. Kh2 {[%clk 0:00:21]}  Ng5 {[%clk 0:00:22]} 31. Nxa5 {[%clk 0:00:21]}  Nxf3+ {[%clk 0:00:18]} 32. gxf3 {[%clk 0:00:21]}  Qxf3 {[%clk 0:00:18]} 33. Kg1 {[%clk 0:00:19]}  Ne4 {[%clk 0:00:18]} 34. Nc4 {[%clk 0:00:14]}  Qg4+ {[%clk 0:00:13]} 35. Kf1 {[%clk 0:00:13]}  Qh3+ {[%clk 0:00:13]} 36. Ke2 {[%clk 0:00:12]}  Nc3+ {[%clk 0:00:12]} 37. Ke1 {[%clk 0:00:07]}  Qh1# {[%clk 0:00:13]} 0-1


[Site "https://www.chess.com"]

[Event "Titled Tuesday Blitz June 29 2021"]
[White "TigrVShlyape"]
[Black "Carnivoras"]
[WhiteElo "2845"]
[BlackElo "2667"]
[Result "1-0"]
[Round "09"]
[TimeControl "180+1"]
[Date "2021.06.29"]
[WhiteClock "0:00:11"]
[BlackClock "0:00:06"]

1. d4 {[%clk 0:03:00]}  d5 {[%clk 0:02:59]} 2. Nf3 {[%clk 0:02:59]}  Nf6 {[%clk 0:02:58]} 3. Bf4 {[%clk 0:03:00]}  Bf5 {[%clk 0:02:58]} 4. c4 {[%clk 0:02:59]}  e6 {[%clk 0:02:50]} 5. Nc3 {[%clk 0:02:59]}  c6 {[%clk 0:02:50]} 6. e3 {[%clk 0:02:55]}  Nbd7 {[%clk 0:02:47]} 7. Qb3 {[%clk 0:02:55]}  Qc8 {[%clk 0:02:46]} 8. h3 {[%clk 0:02:54]}  Be7 {[%clk 0:02:46]} 9. Be2 {[%clk 0:02:53]}  O-O {[%clk 0:02:46]} 10. O-O {[%clk 0:02:54]}  h6 {[%clk 0:02:41]} 11. Rfc1 {[%clk 0:02:53]}  Nb6 {[%clk 0:02:41]} 12. c5 {[%clk 0:02:52]}  Nbd7 {[%clk 0:02:40]} 13. Qd1 {[%clk 0:02:53]}  Ne4 {[%clk 0:02:39]} 14. b4 {[%clk 0:02:51]}  Bf6 {[%clk 0:02:32]} 15. Qb3 {[%clk 0:02:18]}  Re8 {[%clk 0:02:17]} 16. Nxe4 {[%clk 0:01:55]}  Bxe4 {[%clk 0:02:01]} 17. Ne5 {[%clk 0:01:51]}  Bxe5 {[%clk 0:01:39]} 18. Bxe5 {[%clk 0:01:49]}  Nxe5 {[%clk 0:01:31]} 19. dxe5 {[%clk 0:01:49]}  Qd8 {[%clk 0:01:30]} 20. Qc3 {[%clk 0:01:46]}  Qg5 {[%clk 0:01:26]} 21. f3 {[%clk 0:01:45]}  Bf5 {[%clk 0:01:25]} 22. Kh2 {[%clk 0:01:41]}  a6 {[%clk 0:01:25]} 23. Qd4 {[%clk 0:01:39]}  Bg6 {[%clk 0:01:23]} 24. h4 {[%clk 0:01:29]}  Qe7 {[%clk 0:01:23]} 25. g3 {[%clk 0:01:16]}  Rf8 {[%clk 0:01:08]} 26. a4 {[%clk 0:01:05]}  Qc7 {[%clk 0:01:04]} 27. Qf4 {[%clk 0:00:41]}  f6 {[%clk 0:00:55]} 28. exf6 {[%clk 0:00:39]}  e5 {[%clk 0:00:55]} 29. Qg4 {[%clk 0:00:34]}  Rxf6 {[%clk 0:00:54]} 30. b5 {[%clk 0:00:32]}  axb5 {[%clk 0:00:54]} 31. axb5 {[%clk 0:00:32]}  Raf8 {[%clk 0:00:47]} 32. bxc6 {[%clk 0:00:30]}  bxc6 {[%clk 0:00:47]} 33. Ra6 {[%clk 0:00:21]}  Qf7 {[%clk 0:00:45]} 34. Qa4 {[%clk 0:00:16]}  Qd7 {[%clk 0:00:36]} 35. Ra7 {[%clk 0:00:15]}  Qe6 {[%clk 0:00:31]} 36. Rf1 {[%clk 0:00:14]}  Bh5 {[%clk 0:00:30]} 37. g4 {[%clk 0:00:10]}  Bxg4 {[%clk 0:00:30]} 38. Qxg4 {[%clk 0:00:10]}  Qxg4 {[%clk 0:00:29]} 39. fxg4 {[%clk 0:00:10]}  Rxf1 {[%clk 0:00:29]} 40. Bxf1 {[%clk 0:00:10]}  Rxf1 {[%clk 0:00:30]} 41. Rc7 {[%clk 0:00:11]}  Rf6 {[%clk 0:00:20]} 42. Kg2 {[%clk 0:00:10]}  e4 {[%clk 0:00:20]} 43. g5 {[%clk 0:00:10]}  hxg5 {[%clk 0:00:19]} 44. hxg5 {[%clk 0:00:10]}  Rf3 {[%clk 0:00:16]} 45. g6 {[%clk 0:00:09]}  Kf8 {[%clk 0:00:16]} 46. Rxc6 {[%clk 0:00:08]}  Rxe3 {[%clk 0:00:15]} 47. Rc7 {[%clk 0:00:09]}  Rc3 {[%clk 0:00:14]} 48. Rf7+ {[%clk 0:00:09]}  Kg8 {[%clk 0:00:14]} 49. Rc7 {[%clk 0:00:09]}  Kf8 {[%clk 0:00:15]} 50. c6 {[%clk 0:00:09]}  d4 {[%clk 0:00:11]} 51. Rf7+ {[%clk 0:00:09]}  Ke8 {[%clk 0:00:11]} 52. c7 {[%clk 0:00:09]}  d3 {[%clk 0:00:11]} 53. Kf2 {[%clk 0:00:09]}  Rc1 {[%clk 0:00:04]} 54. Ke3 {[%clk 0:00:09]}  Re1+ {[%clk 0:00:04]} 55. Kd2 {[%clk 0:00:09]}  Re2+ {[%clk 0:00:05]} 56. Kd1 {[%clk 0:00:09]}  Rc2 {[%clk 0:00:05]} 57. Rxg7 {[%clk 0:00:09]}  e3 {[%clk 0:00:06]} 58. c8=Q+ {[%clk 0:00:09]}  Rxc8 {[%clk 0:00:05]} 59. Rg8+ {[%clk 0:00:09]}  Kd7 {[%clk 0:00:05]} 60. Rxc8 {[%clk 0:00:10]}  Kxc8 {[%clk 0:00:06]} 61. g7 {[%clk 0:00:11]} 1-0


[Site "https://www.chess.com"]

[Event "Titled Tuesday Blitz June 29 2021"]
[White "tsaruk_maks"]
[Black "DenLaz"]
[WhiteElo "2661"]
[BlackElo "2848"]
[Result "0-1"]
[Round "09"]
[TimeControl "180+1"]
[Date "2021.06.29"]
[WhiteClock "0:00:03"]
[BlackClock "0:00:07"]

1. Nf3 {[%clk 0:02:47]}  d5 {[%clk 0:02:58]} 2. g3 {[%clk 0:02:46]}  g6 {[%clk 0:02:58]} 3. Bg2 {[%clk 0:02:46]}  Bg7 {[%clk 0:02:59]} 4. O-O {[%clk 0:02:45]}  e5 {[%clk 0:02:58]} 5. d3 {[%clk 0:02:43]}  Ne7 {[%clk 0:02:57]} 6. Nbd2 {[%clk 0:02:41]}  O-O {[%clk 0:02:57]} 7. e4 {[%clk 0:02:34]}  Nbc6 {[%clk 0:02:55]} 8. c3 {[%clk 0:02:31]}  a5 {[%clk 0:02:53]} 9. a4 {[%clk 0:02:22]}  h6 {[%clk 0:02:51]} 10. Re1 {[%clk 0:01:57]}  Re8 {[%clk 0:02:20]} 11. h4 {[%clk 0:01:34]}  Bg4 {[%clk 0:01:56]} 12. Qb3 {[%clk 0:01:34]}  Qd7 {[%clk 0:01:50]} 13. exd5 {[%clk 0:01:21]}  Nxd5 {[%clk 0:01:49]} 14. Ne4 {[%clk 0:01:21]}  Red8 {[%clk 0:00:50]} 15. Nc5 {[%clk 0:01:10]}  Qe7 {[%clk 0:00:49]} 16. d4 {[%clk 0:01:10]}  b6 {[%clk 0:00:39]} 17. Nh2 {[%clk 0:00:59]}  Be6 {[%clk 0:00:26]} 18. Nxe6 {[%clk 0:00:57]}  Qxe6 {[%clk 0:00:27]} 19. dxe5 {[%clk 0:00:32]}  Nxe5 {[%clk 0:00:27]} 20. f4 {[%clk 0:00:17]}  Nxf4 {[%clk 0:00:24]} 21. Qxe6 {[%clk 0:00:17]}  Nxe6 {[%clk 0:00:25]} 22. Bxa8 {[%clk 0:00:17]}  Rxa8 {[%clk 0:00:25]} 23. Be3 {[%clk 0:00:14]}  Nc4 {[%clk 0:00:23]} 24. b3 {[%clk 0:00:11]}  Nd6 {[%clk 0:00:19]} 25. Bd2 {[%clk 0:00:07]}  Nc5 {[%clk 0:00:18]} 26. Rab1 {[%clk 0:00:05]}  Nce4 {[%clk 0:00:17]} 27. Bf4 {[%clk 0:00:04]}  Bxc3 {[%clk 0:00:17]} 28. Rec1 {[%clk 0:00:03]}  Bd4+ {[%clk 0:00:18]} 29. Kg2 {[%clk 0:00:03]}  Nc5 {[%clk 0:00:16]} 30. Nf3 {[%clk 0:00:03]}  Bg7 {[%clk 0:00:15]} 31. Rd1 {[%clk 0:00:03]}  Nf5 {[%clk 0:00:14]} 32. Kh3 {[%clk 0:00:02]}  Ne6 {[%clk 0:00:12]} 33. Be5 {[%clk 0:00:02]}  Bxe5 {[%clk 0:00:08]} 34. Nxe5 {[%clk 0:00:03]}  Nc5 {[%clk 0:00:07]} 35. Rd5 {[%clk 0:00:03]}  Re8 {[%clk 0:00:06]} 36. Rbd1 {[%clk 0:00:03]}  Ne3 {[%clk 0:00:05]} 37. Rd8 {[%clk 0:00:03]}  Rxd8 {[%clk 0:00:04]} 38. Rxd8+ {[%clk 0:00:04]}  Kg7 {[%clk 0:00:05]} 39. Rc8 {[%clk 0:00:03]}  Ne6 {[%clk 0:00:05]} 40. Re8 {[%clk 0:00:03]}  Nd5 {[%clk 0:00:05]} 41. Rb8 {[%clk 0:00:02]}  h5 {[%clk 0:00:05]} 42. Nc6 {[%clk 0:00:03]}  Nc5 {[%clk 0:00:04]} 43. Rd8 {[%clk 0:00:01]}  Nf6 {[%clk 0:00:05]} 44. Rc8 {[%clk 0:00:02]}  Nd5 {[%clk 0:00:05]} 45. Rd8 {[%clk 0:00:02]}  Ne3 {[%clk 0:00:03]} 46. Rc8 {[%clk 0:00:03]}  Ne6 {[%clk 0:00:02]} 47. Nd8 {[%clk 0:00:02]}  Nd4 {[%clk 0:00:01]} 48. Rxc7 {[%clk 0:00:02]}  Nef5 {[%clk 0:00:02]} 49. Rxf7+ {[%clk 0:00:02]}  Kg8 {[%clk 0:00:02]} 50. Rd7 {[%clk 0:00:02]}  Nxb3 {[%clk 0:00:03]} 51. Ne6 {[%clk 0:00:02]}  Nc1 {[%clk 0:00:02]} 52. Rb7 {[%clk 0:00:02]}  Nd3 {[%clk 0:00:01]} 53. Rxb6 {[%clk 0:00:03]}  Nf2+ {[%clk 0:00:02]} 54. Kg2 {[%clk 0:00:02]}  Ne4 {[%clk 0:00:03]} 55. Rb7 {[%clk 0:00:02]}  Nc3 {[%clk 0:00:03]} 56. Rb5 {[%clk 0:00:01]}  Nxb5 {[%clk 0:00:02]} 57. axb5 {[%clk 0:00:02]}  Nd6 {[%clk 0:00:03]} 58. b6 {[%clk 0:00:03]}  a4 {[%clk 0:00:04]} 59. Nc5 {[%clk 0:00:02]}  a3 {[%clk 0:00:04]} 60. Nb3 {[%clk 0:00:02]}  Kf7 {[%clk 0:00:04]} 61. Kf3 {[%clk 0:00:03]}  Ke6 {[%clk 0:00:04]} 62. Kf4 {[%clk 0:00:04]}  Kd5 {[%clk 0:00:04]} 63. Kg5 {[%clk 0:00:04]}  Kc4 {[%clk 0:00:05]} 64. Na1 {[%clk 0:00:04]}  Kc3 {[%clk 0:00:05]} 65. Kxg6 {[%clk 0:00:04]}  Kb2 {[%clk 0:00:06]} 66. g4 {[%clk 0:00:05]}  hxg4 {[%clk 0:00:06]} 67. h5 {[%clk 0:00:05]}  g3 {[%clk 0:00:06]} 68. h6 {[%clk 0:00:05]}  g2 {[%clk 0:00:07]} 69. h7 {[%clk 0:00:06]}  g1=Q+ {[%clk 0:00:08]} 70. Kf6 {[%clk 0:00:03]}  Qd4+ {[%clk 0:00:08]} 71. Ke6 {[%clk 0:00:03]}  Nb7 {[%clk 0:00:07]} 0-1


[Site "https://www.chess.com"]

[Event "Titled Tuesday Blitz June 29 2021"]
[White "Alexander_Zubov"]
[Black "Witik"]
[WhiteElo "2983"]
[BlackElo "2660"]
[Result "1-0"]
[Round "10"]
[TimeControl "180+1"]
[Date "2021.06.29"]
[WhiteClock "0:00:21"]
[BlackClock "0:00:07"]

1. e4 {[%clk 0:03:00]}  c6 {[%clk 0:02:43]} 2. d4 {[%clk 0:02:59]}  d5 {[%clk 0:02:42]} 3. e5 {[%clk 0:03:00]}  Bf5 {[%clk 0:02:42]} 4. Nf3 {[%clk 0:02:59]}  e6 {[%clk 0:02:42]} 5. Be2 {[%clk 0:03:00]}  Nd7 {[%clk 0:02:39]} 6. O-O {[%clk 0:02:59]}  Bg6 {[%clk 0:02:39]} 7. Nbd2 {[%clk 0:02:59]}  Nh6 {[%clk 0:02:39]} 8. Nb3 {[%clk 0:02:58]}  Nf5 {[%clk 0:02:40]} 9. a4 {[%clk 0:02:58]}  Be7 {[%clk 0:02:39]} 10. a5 {[%clk 0:02:57]}  O-O {[%clk 0:02:40]} 11. Re1 {[%clk 0:02:56]}  c5 {[%clk 0:02:33]} 12. c3 {[%clk 0:02:56]}  c4 {[%clk 0:02:21]} 13. Nbd2 {[%clk 0:02:55]}  f6 {[%clk 0:02:22]} 14. exf6 {[%clk 0:02:52]}  Bxf6 {[%clk 0:02:07]} 15. Bf1 {[%clk 0:02:43]}  Re8 {[%clk 0:01:50]} 16. b3 {[%clk 0:02:30]}  e5 {[%clk 0:01:50]} 17. dxe5 {[%clk 0:02:08]}  Nxe5 {[%clk 0:01:50]} 18. bxc4 {[%clk 0:01:46]}  Nxf3+ {[%clk 0:01:42]} 19. Nxf3 {[%clk 0:01:45]}  Bxc3 {[%clk 0:01:40]} 20. Rxe8+ {[%clk 0:01:43]}  Qxe8 {[%clk 0:01:40]} 21. Ra3 {[%clk 0:01:41]}  d4 {[%clk 0:01:37]} 22. g4 {[%clk 0:01:24]}  Nd6 {[%clk 0:00:21]} 23. Nxd4 {[%clk 0:01:22]}  Bb4 {[%clk 0:00:20]} 24. Rb3 {[%clk 0:01:08]}  Bc5 {[%clk 0:00:20]} 25. Be3 {[%clk 0:00:59]}  Rd8 {[%clk 0:00:15]} 26. Qf3 {[%clk 0:00:48]}  Ne4 {[%clk 0:00:13]} 27. Rd3 {[%clk 0:00:28]}  Qe5 {[%clk 0:00:09]} 28. Nf5 {[%clk 0:00:24]}  Rf8 {[%clk 0:00:07]} 29. Rd5 {[%clk 0:00:21]} 1-0


[Site "https://www.chess.com"]

[Event "Titled Tuesday Blitz June 29 2021"]
[White "ChessLover0108"]
[Black "GregShahade"]
[WhiteElo "2860"]
[BlackElo "2738"]
[Result "1-0"]
[Round "10"]
[TimeControl "180+1"]
[Date "2021.06.29"]
[WhiteClock "0:00:36"]
[BlackClock "0:00:03"]

1. d4 {[%clk 0:03:00]}  Nf6 {[%clk 0:02:59]} 2. c4 {[%clk 0:02:59]}  g6 {[%clk 0:03:00]} 3. Nc3 {[%clk 0:02:55]}  d5 {[%clk 0:03:00]} 4. Bg5 {[%clk 0:02:55]}  Ne4 {[%clk 0:02:59]} 5. Bf4 {[%clk 0:02:53]}  Nxc3 {[%clk 0:02:51]} 6. bxc3 {[%clk 0:02:54]}  c5 {[%clk 0:02:47]} 7. cxd5 {[%clk 0:02:51]}  Qxd5 {[%clk 0:02:42]} 8. Nf3 {[%clk 0:02:49]}  Bg7 {[%clk 0:02:39]} 9. e3 {[%clk 0:02:50]}  O-O {[%clk 0:02:35]} 10. Be2 {[%clk 0:02:46]}  Nc6 {[%clk 0:02:33]} 11. O-O {[%clk 0:02:46]}  cxd4 {[%clk 0:02:31]} 12. cxd4 {[%clk 0:02:46]}  Bf5 {[%clk 0:02:24]} 13. Rc1 {[%clk 0:02:45]}  Rac8 {[%clk 0:02:13]} 14. h3 {[%clk 0:02:05]}  Qxa2 {[%clk 0:02:11]} 15. Bc4 {[%clk 0:02:06]}  Qa5 {[%clk 0:02:07]} 16. Qb3 {[%clk 0:02:05]}  Qb4 {[%clk 0:02:03]} 17. Qa2 {[%clk 0:02:05]}  Qa5 {[%clk 0:01:36]} 18. Qb3 {[%clk 0:01:51]}  e5 {[%clk 0:01:14]} 19. dxe5 {[%clk 0:01:39]}  Nxe5 {[%clk 0:01:14]} 20. Bxe5 {[%clk 0:01:26]}  Bxe5 {[%clk 0:01:14]} 21. Qxb7 {[%clk 0:01:26]}  Rc7 {[%clk 0:01:05]} 22. Qd5 {[%clk 0:01:10]}  Qxd5 {[%clk 0:00:43]} 23. Bxd5 {[%clk 0:01:10]}  Rfc8 {[%clk 0:00:41]} 24. Bxf7+ {[%clk 0:01:06]}  Kg7 {[%clk 0:00:17]} 25. Rxc7 {[%clk 0:01:06]}  Bxc7 {[%clk 0:00:17]} 26. Bb3 {[%clk 0:01:05]}  Bd8 {[%clk 0:00:15]} 27. Nd4 {[%clk 0:01:03]}  Bf6 {[%clk 0:00:14]} 28. Nxf5+ {[%clk 0:00:56]}  gxf5 {[%clk 0:00:14]} 29. Rd1 {[%clk 0:00:57]}  Rc7 {[%clk 0:00:11]} 30. g3 {[%clk 0:00:57]}  a5 {[%clk 0:00:11]} 31. Rd5 {[%clk 0:00:56]}  Ra7 {[%clk 0:00:11]} 32. Ba4 {[%clk 0:00:46]}  Kg6 {[%clk 0:00:11]} 33. Kg2 {[%clk 0:00:46]}  Bc3 {[%clk 0:00:07]} 34. h4 {[%clk 0:00:46]}  Rb7 {[%clk 0:00:06]} 35. Bc2 {[%clk 0:00:44]}  Ra7 {[%clk 0:00:05]} 36. Rxf5 {[%clk 0:00:44]}  Kg7 {[%clk 0:00:05]} 37. Rf4 {[%clk 0:00:44]}  Bb4 {[%clk 0:00:04]} 38. g4 {[%clk 0:00:40]}  h6 {[%clk 0:00:05]} 39. Rc4 {[%clk 0:00:37]}  Bd6 {[%clk 0:00:03]} 40. f4 {[%clk 0:00:35]}  Bb4 {[%clk 0:00:03]} 41. Kf3 {[%clk 0:00:35]}  Rd7 {[%clk 0:00:04]} 42. g5 {[%clk 0:00:35]}  hxg5 {[%clk 0:00:04]} 43. hxg5 {[%clk 0:00:36]}  Rd2 {[%clk 0:00:04]} 44. Rc7+ {[%clk 0:00:35]}  Kf8 {[%clk 0:00:04]} 45. g6 {[%clk 0:00:36]}  Bd6 {[%clk 0:00:04]} 46. g7+ {[%clk 0:00:35]}  Kg8 {[%clk 0:00:03]} 47. Bb3+ {[%clk 0:00:36]}  Kh7 {[%clk 0:00:03]} 48. g8=Q+ {[%clk 0:00:36]} 1-0


[Site "https://www.chess.com"]

[Event "Titled Tuesday Blitz June 29 2021"]
[White "ChessWarrior7197"]
[Black "exoticprincess"]
[WhiteElo "2983"]
[BlackElo "2876"]
[Result "0-1"]
[Round "10"]
[TimeControl "180+1"]
[Date "2021.06.29"]
[WhiteClock "0:00:04"]
[BlackClock "0:00:10"]

1. d4 {[%clk 0:03:00]}  d5 {[%clk 0:02:58]} 2. c4 {[%clk 0:03:01]}  c6 {[%clk 0:02:58]} 3. Nf3 {[%clk 0:03:01]}  Nf6 {[%clk 0:02:58]} 4. Qb3 {[%clk 0:03:01]}  Na6 {[%clk 0:02:55]} 5. e3 {[%clk 0:02:57]}  Nc7 {[%clk 0:02:55]} 6. Nc3 {[%clk 0:02:56]}  e6 {[%clk 0:02:53]} 7. Bd3 {[%clk 0:02:56]}  a5 {[%clk 0:02:48]} 8. O-O {[%clk 0:02:52]}  a4 {[%clk 0:02:46]} 9. Qc2 {[%clk 0:02:51]}  a3 {[%clk 0:02:42]} 10. b3 {[%clk 0:02:49]}  Bb4 {[%clk 0:02:42]} 11. Bd2 {[%clk 0:02:46]}  O-O {[%clk 0:02:41]} 12. e4 {[%clk 0:02:37]}  h6 {[%clk 0:02:35]} 13. e5 {[%clk 0:02:31]}  Nd7 {[%clk 0:02:35]} 14. Qc1 {[%clk 0:02:22]}  Re8 {[%clk 0:02:23]} 15. Rd1 {[%clk 0:01:53]}  Bf8 {[%clk 0:02:22]} 16. Ne2 {[%clk 0:01:51]}  c5 {[%clk 0:02:19]} 17. Qc2 {[%clk 0:01:35]}  b6 {[%clk 0:02:17]} 18. Rac1 {[%clk 0:01:35]}  Bb7 {[%clk 0:02:18]} 19. Be3 {[%clk 0:01:31]}  Rc8 {[%clk 0:02:09]} 20. Qb1 {[%clk 0:01:18]}  dxc4 {[%clk 0:02:08]} 21. Bxc4 {[%clk 0:01:15]}  Bxf3 {[%clk 0:02:01]} 22. gxf3 {[%clk 0:01:15]}  b5 {[%clk 0:01:57]} 23. Bd3 {[%clk 0:01:15]}  cxd4 {[%clk 0:01:57]} 24. Bxd4 {[%clk 0:01:09]}  Qg5+ {[%clk 0:01:38]} 25. Kh1 {[%clk 0:01:09]}  Qh5 {[%clk 0:01:18]} 26. Be4 {[%clk 0:01:09]}  Nxe5 {[%clk 0:01:14]} 27. Ng3 {[%clk 0:01:10]}  Qg5 {[%clk 0:01:14]} 28. Bb7 {[%clk 0:01:10]}  Ng6 {[%clk 0:00:28]} 29. Bxc8 {[%clk 0:01:07]}  Rxc8 {[%clk 0:00:29]} 30. Bb6 {[%clk 0:01:06]}  Nd5 {[%clk 0:00:23]} 31. Rxc8 {[%clk 0:01:05]}  Nxb6 {[%clk 0:00:23]} 32. Rcd8 {[%clk 0:00:56]}  Nd5 {[%clk 0:00:22]} 33. R8xd5 {[%clk 0:00:56]}  exd5 {[%clk 0:00:22]} 34. Qf5 {[%clk 0:00:57]}  Qh4 {[%clk 0:00:20]} 35. Qxd5 {[%clk 0:00:52]}  Qf6 {[%clk 0:00:16]} 36. Qf5 {[%clk 0:00:37]}  Qb2 {[%clk 0:00:16]} 37. Qxb5 {[%clk 0:00:19]}  Qxa2 {[%clk 0:00:15]} 38. Kg1 {[%clk 0:00:18]}  Qc2 {[%clk 0:00:14]} 39. Qd3 {[%clk 0:00:17]}  Qb2 {[%clk 0:00:12]} 40. Qb1 {[%clk 0:00:11]}  Qc3 {[%clk 0:00:12]} 41. Qd3 {[%clk 0:00:11]}  Qb2 {[%clk 0:00:11]} 42. Qb1 {[%clk 0:00:12]}  Qf6 {[%clk 0:00:12]} 43. Qd3 {[%clk 0:00:05]}  a2 {[%clk 0:00:11]} 44. Qa6 {[%clk 0:00:04]}  Qxa6 {[%clk 0:00:10]} 0-1


[Site "https://www.chess.com"]

[Event "Titled Tuesday Blitz June 29 2021"]
[White "DeTimmerman"]
[Black "Tayson_7"]
[WhiteElo "2788"]
[BlackElo "2645"]
[Result "0-1"]
[Round "10"]
[TimeControl "180+1"]
[Date "2021.06.29"]
[WhiteClock "0:00:19"]
[BlackClock "0:01:14"]

1. b4 {[%clk 0:03:00]}  a5 {[%clk 0:02:58]} 2. b5 {[%clk 0:03:01]}  a4 {[%clk 0:02:58]} 3. a3 {[%clk 0:03:01]}  e5 {[%clk 0:02:57]} 4. Bb2 {[%clk 0:03:01]}  d6 {[%clk 0:02:56]} 5. c4 {[%clk 0:03:01]}  g6 {[%clk 0:02:55]} 6. e3 {[%clk 0:03:02]}  Bg7 {[%clk 0:02:56]} 7. Nc3 {[%clk 0:03:02]}  Ne7 {[%clk 0:02:55]} 8. Nxa4 {[%clk 0:03:03]}  O-O {[%clk 0:02:55]} 9. Nc3 {[%clk 0:03:03]}  f5 {[%clk 0:02:55]} 10. Nf3 {[%clk 0:03:03]}  c6 {[%clk 0:02:55]} 11. d4 {[%clk 0:02:56]}  e4 {[%clk 0:02:54]} 12. Nd2 {[%clk 0:02:55]}  d5 {[%clk 0:02:54]} 13. a4 {[%clk 0:02:54]}  h6 {[%clk 0:02:53]} 14. Qb3 {[%clk 0:02:51]}  Be6 {[%clk 0:02:53]} 15. Be2 {[%clk 0:02:49]}  Kh7 {[%clk 0:02:52]} 16. g3 {[%clk 0:02:45]}  Rf7 {[%clk 0:02:52]} 17. h4 {[%clk 0:02:45]}  Ng8 {[%clk 0:02:51]} 18. c5 {[%clk 0:02:38]}  Nf6 {[%clk 0:02:51]} 19. b6 {[%clk 0:02:38]}  Na6 {[%clk 0:02:44]} 20. O-O-O {[%clk 0:02:37]}  Nd7 {[%clk 0:02:42]} 21. Qc2 {[%clk 0:02:21]}  Nb4 {[%clk 0:02:36]} 22. Qb3 {[%clk 0:02:17]}  Na6 {[%clk 0:02:36]} 23. Qc2 {[%clk 0:02:17]}  Qf8 {[%clk 0:02:25]} 24. Rdg1 {[%clk 0:02:16]}  Ndxc5 {[%clk 0:02:21]} 25. dxc5 {[%clk 0:02:16]}  Nb4 {[%clk 0:02:18]} 26. Qb3 {[%clk 0:02:11]}  Qxc5 {[%clk 0:02:18]} 27. Nb1 {[%clk 0:01:23]}  d4 {[%clk 0:02:00]} 28. Qxe6 {[%clk 0:01:24]}  dxc3 {[%clk 0:02:00]} 29. Ba3 {[%clk 0:00:52]}  c2 {[%clk 0:01:55]} 30. Qb3 {[%clk 0:00:49]}  Rxa4 {[%clk 0:01:25]} 31. Qxa4 {[%clk 0:00:20]}  Na2+ {[%clk 0:01:25]} 32. Kd2 {[%clk 0:00:20]}  Rd7+ {[%clk 0:01:24]} 33. Ke1 {[%clk 0:00:18]}  cxb1=Q+ {[%clk 0:01:23]} 34. Bd1 {[%clk 0:00:19]}  Rxd1+ {[%clk 0:01:14]} 35. Qxd1 {[%clk 0:00:20]}  Bc3+ {[%clk 0:01:14]} 36. Ke2 {[%clk 0:00:19]}  Qc4+ {[%clk 0:01:14]} 0-1


[Site "https://www.chess.com"]